[Event "NK 2022"]
[Site "Groningen, Netherlands"]
[Date "2022.12.21"]
[Round "1.1"]
[White "Warmerdam, Max"]
[Black "De Winter, Arthur"]
[Result "1-0"]
[TimeControl "40/90; 30 minutes + increment 30 seconds from start"]
[WhiteTitle "GM"]
[BlackTitle "FM"]
[WhiteFideId "1048104"]
[BlackFideId "1069020"]
[WhiteElo "2619"]
[BlackElo "2368"]

1. e4 {[%clk 01:30:54]} {[%emt 00:00:05]} c5 {[%clk 01:30:54]} {[%emt
00:00:07]} 2. c3 {[%clk 01:31:19]} {[%emt 00:00:06]} Nf6 {[%clk 01:29:21]}
{[%emt 00:02:03]} 3. e5 {[%clk 01:31:35]} {[%emt 00:00:14]} Nd5 {[%clk
01:29:46]} {[%emt 00:00:05]} 4. Nf3 {[%clk 01:31:38]} {[%emt 00:00:26]} Nc6
{[%clk 01:29:18]} {[%emt 00:00:59]} 5. Bc4 {[%clk 01:31:04]} {[%emt 00:01:04]}
Nb6 {[%clk 01:28:31]} {[%emt 00:01:16]} 6. Bb3 {[%clk 01:31:28]} {[%emt
00:00:06]} c4 {[%clk 01:28:43]} {[%emt 00:00:18]} 7. Bc2 {[%clk 01:31:52]}
{[%emt 00:00:05]} d5 {[%clk 01:29:09]} {[%emt 00:00:05]} 8. exd6 {[%clk
01:32:16]} {[%emt 00:00:06]} Qxd6 {[%clk 01:29:33]} {[%emt 00:00:05]} 9. O-O
{[%clk 01:32:40]} {[%emt 00:00:07]} Bg4 {[%clk 01:29:47]} {[%emt 00:00:15]} 10.
h3 {[%clk 01:31:11]} {[%emt 00:02:00]} Bh5 {[%clk 01:29:20]} {[%emt 00:00:57]}
11. Re1 {[%clk 01:29:27]} {[%emt 00:02:14]} O-O-O {[%clk 01:23:49]} {[%emt
00:06:02]} 12. b3 {[%clk 01:28:03]} {[%emt 00:01:54]} Qf6 {[%clk 01:17:03]}
{[%emt 00:07:15]} 13. Na3 {[%clk 01:26:06]} {[%emt 00:02:26]} cxb3 {[%clk
01:12:19]} {[%emt 00:05:15]} 14. Be4 {[%clk 01:26:08]} {[%emt 00:00:28]} bxa2
{[%clk 00:59:51]} {[%emt 00:12:58]} 15. d4 {[%clk 01:17:43]} {[%emt 00:08:55]}
Bxf3 {[%clk 00:55:35]} {[%emt 00:04:46]} 16. Bxf3 {[%clk 01:04:25]} {[%emt
00:13:48]} e5 {[%clk 00:55:49]} {[%emt 00:00:15]} 17. d5 {[%clk 01:02:01]}
{[%emt 00:02:55]} Bc5 {[%clk 00:42:46]} {[%emt 00:13:33]} 18. Rxa2 {[%clk
00:57:16]} {[%emt 00:05:14]} Ne7 {[%clk 00:37:16]} {[%emt 00:06:00]} 19. c4
{[%clk 00:51:54]} {[%emt 00:05:52]} Nf5 {[%clk 00:30:52]} {[%emt 00:06:54]} 20.
Be4 {[%clk 00:45:15]} {[%emt 00:07:09]} h5 {[%clk 00:26:58]} {[%emt 00:04:24]}
21. Bxf5+ {[%clk 00:44:24]} {[%emt 00:01:21]} Qxf5 {[%clk 00:27:21]} {[%emt
00:00:07]} 22. Be3 {[%clk 00:44:32]} {[%emt 00:00:23]} Nd7 {[%clk 00:22:15]}
{[%emt 00:05:35]} 23. Qb3 {[%clk 00:42:05]} {[%emt 00:02:58]} Qg6 {[%clk
00:15:21]} {[%emt 00:07:23]} 24. Rb1 {[%clk 00:37:33]} {[%emt 00:05:02]} Qb6
{[%clk 00:12:55]} {[%emt 00:02:56]} 25. Nb5 {[%clk 00:31:51]} {[%emt 00:06:12]}
Bxe3 {[%clk 00:07:26]} {[%emt 00:05:59]} 26. fxe3 {[%clk 00:28:05]} {[%emt
00:04:16]} Nc5 {[%clk 00:06:19]} {[%emt 00:01:37]} 27. Nxa7+ {[%clk 00:28:07]}
{[%emt 00:00:28]} Qxa7 {[%clk 00:06:44]} {[%emt 00:00:05]} 28. Rxa7 {[%clk
00:28:34]} {[%emt 00:00:04]} Nxb3 {[%clk 00:07:10]} {[%emt 00:00:03]} 29. Rxb3
{[%clk 00:28:59]} {[%emt 00:00:05]} 1-0

[Event "NK 2022"]
[Site "Groningen, Netherlands"]
[Date "2022.12.21"]
[Round "1.2"]
[White "Timmermans, Mark"]
[Black "L'Ami, Erwin"]
[Result "0-1"]
[TimeControl "40/90; 30 minutes + increment 30 seconds from start"]
[WhiteTitle "IM"]
[BlackTitle "GM"]
[WhiteFideId "1026399"]
[BlackFideId "1007998"]
[WhiteElo "2391"]
[BlackElo "2627"]

1. e4 {[%clk 01:30:57]} {[%emt 00:00:02]} e5 {[%clk 01:30:47]} {[%emt
00:00:14]} 2. Nf3 {[%clk 01:31:20]} {[%emt 00:00:07]} Nc6 {[%clk 01:31:07]}
{[%emt 00:00:09]} 3. d4 {[%clk 01:31:45]} {[%emt 00:00:05]} exd4 {[%clk
01:31:22]} {[%emt 00:00:15]} 4. Bc4 {[%clk 01:32:08]} {[%emt 00:00:08]} Nf6
{[%clk 01:30:39]} {[%emt 00:01:13]} 5. e5 {[%clk 01:32:19]} {[%emt 00:00:19]}
Ne4 {[%clk 01:28:31]} {[%emt 00:02:37]} 6. Qe2 {[%clk 01:29:10]} {[%emt
00:03:39]} Nc5 {[%clk 01:28:36]} {[%emt 00:00:25]} 7. O-O {[%clk 01:28:04]}
{[%emt 00:01:36]} Ne6 {[%clk 01:26:02]} {[%emt 00:03:04]} 8. Bxe6 {[%clk
01:26:40]} {[%emt 00:01:54]} dxe6 {[%clk 01:23:30]} {[%emt 00:03:03]} 9. Rd1
{[%clk 01:27:06]} {[%emt 00:00:04]} Be7 {[%clk 01:18:19]} {[%emt 00:05:41]} 10.
Be3 {[%clk 01:22:49]} {[%emt 00:04:46]} O-O {[%clk 01:15:07]} {[%emt 00:03:42]}
11. Nc3 {[%clk 01:19:01]} {[%emt 00:04:18]} Bd7 {[%clk 01:06:29]} {[%emt
00:09:08]} 12. Bxd4 {[%clk 01:19:14]} {[%emt 00:00:17]} Nxd4 {[%clk 01:04:31]}
{[%emt 00:02:29]} 13. Nxd4 {[%clk 01:19:39]} {[%emt 00:00:05]} Qe8 {[%clk
00:53:17]} {[%emt 00:11:44]} 14. Ndb5 {[%clk 01:12:05]} {[%emt 00:08:04]} Qc8
{[%clk 00:50:21]} {[%emt 00:03:25]} 15. a4 {[%clk 00:44:42]} {[%emt 00:27:54]}
Rd8 {[%clk 00:46:09]} {[%emt 00:04:41]} 16. Ne4 {[%clk 00:40:01]} {[%emt
00:05:11]} a6 {[%clk 00:40:56]} {[%emt 00:05:43]} 17. Nbc3 {[%clk 00:34:25]}
{[%emt 00:06:06]} Bc6 {[%clk 00:39:12]} {[%emt 00:02:15]} 18. Qg4 {[%clk
00:33:49]} {[%emt 00:01:06]} Rxd1+ {[%clk 00:35:28]} 19. Rxd1 {[%clk 00:34:04]}
{[%emt 00:04:29]} Qf8 {[%clk 00:35:16]} {[%emt 00:00:41]} 20. Rd3 {[%clk
00:28:40]} {[%emt 00:05:54]} Rd8 {[%clk 00:31:57]} {[%emt 00:03:49]} 21. Rh3
{[%clk 00:22:16]} {[%emt 00:06:55]} Kh8 {[%clk 00:30:26]} {[%emt 00:02:01]} 22.
Ng5 {[%clk 00:19:50]} {[%emt 00:02:56]} h6 {[%clk 00:28:35]} {[%emt 00:02:21]}
23. Qf4 {[%clk 00:19:27]} {[%emt 00:00:53]} Kg8 {[%clk 00:20:16]} {[%emt
00:08:48]} 24. Nge4 {[%clk 00:19:49]} {[%emt 00:00:09]} Rd7 {[%clk 00:19:41]}
{[%emt 00:01:04]} 25. Rg3 {[%clk 00:16:17]} {[%emt 00:04:02]} Kh8 {[%clk
00:17:28]} {[%emt 00:02:43]} 26. Kf1 {[%clk 00:12:51]} {[%emt 00:03:57]} b5
{[%clk 00:14:32]} {[%emt 00:03:26]} 27. axb5 {[%clk 00:09:18]} {[%emt
00:04:03]} axb5 {[%clk 00:14:52]} {[%emt 00:00:09]} 28. Rd3 {[%clk 00:07:26]}
{[%emt 00:02:23]} b4 {[%clk 00:10:09]} {[%emt 00:05:13]} 29. Rxd7 {[%clk
00:07:33]} {[%emt 00:00:22]} Bxd7 {[%clk 00:10:26]} {[%emt 00:00:13]} 30. Nd1
{[%clk 00:07:54]} {[%emt 00:00:10]} Qa8 {[%clk 00:09:02]} {[%emt 00:01:53]} 31.
f3 {[%clk 00:07:45]} {[%emt 00:00:39]} Kg8 {[%clk 00:07:42]} {[%emt 00:01:50]}
32. Qe3 {[%clk 00:07:26]} {[%emt 00:00:49]} Bc6 {[%clk 00:05:23]} {[%emt
00:02:49]} 33. Nd2 {[%clk 00:07:17]} {[%emt 00:00:39]} Bd5 {[%clk 00:04:15]}
{[%emt 00:01:38]} 34. Ke1 {[%clk 00:07:09]} {[%emt 00:00:39]} Qa5 {[%clk
00:03:00]} {[%emt 00:01:45]} 35. g3 {[%clk 00:07:07]} {[%emt 00:00:31]} Bc5
{[%clk 00:02:45]} {[%emt 00:00:46]} 36. Qd3 {[%clk 00:07:23]} {[%emt 00:00:14]}
Ba7 {[%clk 00:02:06]} {[%emt 00:01:10]} 37. c4 {[%clk 00:07:12]} {[%emt
00:00:41]} Bc6 {[%clk 00:01:54]} {[%emt 00:00:41]} 38. Qd8+ {[%clk 00:06:38]}
{[%emt 00:01:04]} Kh7 {[%clk 00:02:19]} {[%emt 00:00:04]} 39. Qd3+ {[%clk
00:07:05]} {[%emt 00:00:05]} g6 {[%clk 00:02:20]} {[%emt 00:00:28]} 40. f4
{[%clk 00:06:45]} {[%emt 00:00:50]} Qc5 {[%clk 00:01:23]} {[%emt 00:01:27]} 41.
Qd8 {[%clk 00:04:28]} {[%emt 00:02:47]} Bb6 {[%clk 00:24:47]} {[%emt 00:07:06]}
42. Nf1 {[%clk 00:29:33]} {[%emt 00:05:26]} Qxc4 {[%clk 00:20:46]} {[%emt
00:04:30]} 43. Qe7 {[%clk 00:29:50]} {[%emt 00:00:12]} Kg7 {[%clk 00:20:53]}
{[%emt 00:00:23]} 44. Nfe3 {[%clk 00:27:11]} {[%emt 00:03:10]} Qe4 {[%clk
00:18:02]} {[%emt 00:03:21]} 45. Kd2 {[%clk 00:26:32]} {[%emt 00:01:09]} Bxe3+
{[%clk 00:15:17]} {[%emt 00:03:14]} 46. Nxe3 {[%clk 00:26:53]} {[%emt
00:00:09]} Qd4+ {[%clk 00:15:39]} {[%emt 00:00:09]} 47. Ke2 {[%clk 00:25:48]}
{[%emt 00:01:35]} Qxb2+ {[%clk 00:14:41]} {[%emt 00:01:27]} 48. Ke1 {[%clk
00:26:12]} {[%emt 00:00:07]} Qc3+ {[%clk 00:13:45]} {[%emt 00:01:26]} 49. Ke2
{[%clk 00:26:36]} {[%emt 00:00:06]} Bb5+ {[%clk 00:13:55]} {[%emt 00:00:20]} 50.
Kf3 {[%clk 00:26:59]} {[%emt 00:00:07]} Qd2 {[%clk 00:13:51]} {[%emt 00:00:33]}
0-1

[Event "NK 2022"]
[Site "Groningen, Netherlands"]
[Date "2022.12.21"]
[Round "1.3"]
[White "Van den Doel, Erik"]
[Black "Lai, Hing Ting"]
[Result "1-0"]
[TimeControl "40/90; 30 minutes + increment 30 seconds from start"]
[WhiteTitle "GM"]
[BlackTitle "IM"]
[WhiteFideId "1003720"]
[BlackFideId "1038257"]
[WhiteElo "2582"]
[BlackElo "2486"]

1. e4 {[%clk 01:30:56]} {[%emt 00:00:02]} c6 {[%clk 01:30:56]} {[%emt
00:00:05]} 2. d4 {[%clk 01:31:19]} {[%emt 00:00:08]} d5 {[%clk 01:31:21]}
{[%emt 00:00:05]} 3. exd5 {[%clk 01:31:41]} {[%emt 00:00:07]} cxd5 {[%clk
01:31:46]} {[%emt 00:00:05]} 4. Bd3 {[%clk 01:32:01]} {[%emt 00:00:09]} Nc6
{[%clk 01:32:09]} {[%emt 00:00:07]} 5. c3 {[%clk 01:32:24]} {[%emt 00:00:07]}
Qc7 {[%clk 01:32:27]} {[%emt 00:00:13]} 6. Na3 {[%clk 01:32:37]} {[%emt
00:00:16]} a6 {[%clk 01:32:30]} {[%emt 00:00:27]} 7. Nc2 {[%clk 01:32:58]}
{[%emt 00:00:09]} Nf6 {[%clk 01:32:14]} {[%emt 00:00:46]} 8. h3 {[%clk
01:32:51]} {[%emt 00:00:37]} e6 {[%clk 01:30:56]} {[%emt 00:01:49]} 9. Nf3
{[%clk 01:31:20]} {[%emt 00:02:00]} Bd6 {[%clk 01:30:02]} {[%emt 00:01:24]} 10.
O-O {[%clk 01:31:32]} {[%emt 00:00:19]} O-O {[%clk 01:27:50]} {[%emt 00:02:42]}
11. Re1 {[%clk 01:31:31]} {[%emt 00:00:30]} Bf4 {[%clk 01:20:05]} {[%emt
00:08:15]} 12. Bxf4 {[%clk 01:00:41]} {[%emt 00:31:21]} Qxf4 {[%clk 01:20:25]}
{[%emt 00:00:10]} 13. Qe2 {[%clk 01:00:00]} {[%emt 00:01:11]} Bd7 {[%clk
01:08:50]} {[%emt 00:12:04]} 14. Ne5 {[%emt 00:14:55]} Rac8 {[%clk 00:58:18]}
15. Rad1 {[%clk 00:47:29]} {[%emt 00:09:38]} Ne7 {[%clk 00:54:45]} {[%emt
00:04:03]} 16. Ne3 {[%clk 00:45:10]} {[%emt 00:02:49]} Ng6 {[%clk 00:45:24]}
{[%emt 00:09:51]} 17. g3 {[%clk 00:32:18]} {[%emt 00:13:23]} Qh6 {[%clk
00:36:34]} {[%emt 00:09:19]} 18. h4 {[%clk 00:15:43]} {[%emt 00:17:06]} Nxe5
{[%clk 00:32:24]} {[%emt 00:04:40]} 19. dxe5 {[%clk 00:16:06]} {[%emt
00:00:07]} Ne8 {[%clk 00:32:46]} {[%emt 00:00:08]} 20. Bb1 {[%clk 00:15:43]}
{[%emt 00:00:52]} Bb5 {[%clk 00:29:40]} {[%emt 00:03:36]} 21. Qf3 {[%clk
00:13:48]} {[%emt 00:02:26]} f5 {[%clk 00:27:00]} {[%emt 00:03:10]} 22. exf6
{[%clk 00:11:26]} {[%emt 00:02:52]} Qxf6 {[%clk 00:25:15]} {[%emt 00:02:15]} 23.
Qxf6 {[%clk 00:08:53]} {[%emt 00:03:02]} gxf6 {[%clk 00:22:01]} {[%emt
00:03:44]} 24. f4 {[%clk 00:07:09]} {[%emt 00:02:14]} f5 {[%clk 00:19:32]}
{[%emt 00:02:59]} 25. g4 {[%clk 00:07:05]} {[%emt 00:00:35]} fxg4 {[%clk
00:19:03]} {[%emt 00:00:59]} 26. f5 {[%clk 00:06:49]} {[%emt 00:00:45]} Ng7
{[%clk 00:16:25]} {[%emt 00:03:08]} 27. fxe6 {[%clk 00:06:18]} {[%emt
00:01:01]} Rce8 {[%clk 00:15:14]} {[%emt 00:01:42]} 28. Nxg4 {[%clk 00:05:38]}
{[%emt 00:01:10]} Rxe6 {[%clk 00:14:47]} {[%emt 00:00:57]} 29. Rxe6 {[%clk
00:04:49]} {[%emt 00:01:19]} Nxe6 {[%clk 00:15:15]} {[%emt 00:00:01]} 30. Nh6+
{[%clk 00:04:19]} {[%emt 00:01:00]} Kh8 {[%clk 00:13:04]} {[%emt 00:02:42]} 31.
Nf5 {[%clk 00:03:18]} {[%emt 00:01:31]} Bc6 {[%clk 00:11:47]} {[%emt 00:01:46]}
32. Nd4 {[%clk 00:02:52]} {[%emt 00:00:56]} Bd7 {[%clk 00:07:29]} {[%emt
00:04:48]} 33. Nxe6 {[%clk 00:03:17]} {[%emt 00:00:06]} Bxe6 {[%clk 00:07:55]}
{[%emt 00:00:04]} 34. Re1 {[%clk 00:03:37]} {[%emt 00:00:10]} Rf6 {[%clk
00:07:01]} {[%emt 00:01:24]} 35. Rf1 {[%clk 00:03:50]} {[%emt 00:00:18]} Rh6
{[%clk 00:04:33]} {[%emt 00:02:56]} 36. Rf4 {[%clk 00:03:58]} {[%emt 00:00:22]}
Kg7 {[%clk 00:04:44]} {[%emt 00:00:20]} 37. Kf2 {[%clk 00:04:03]} {[%emt
00:00:24]} Rh5 {[%clk 00:04:40]} {[%emt 00:00:34]} 38. Bd3 {[%clk 00:01:54]}
{[%emt 00:02:39]} Re5 {[%clk 00:04:40]} {[%emt 00:00:31]} 39. Rb4 {[%clk
00:01:38]} {[%emt 00:00:46]} Bc8 {[%emt 00:01:52]} 40. a4 {[%clk 00:01:14]} Re7
{[%clk 00:00:40]} {[%emt 00:04:01]} 41. Rb6 {[%clk 00:26:34]} {[%emt 00:05:11]}
Be6 {[%clk 00:24:03]} {[%emt 00:07:07]} 42. Kf3 {[%clk 00:22:03]} {[%emt
00:05:00]} Bd7 {[%clk 00:20:54]} {[%emt 00:03:40]} 43. a5 {[%clk 00:17:06]}
{[%emt 00:05:27]} Be8 {[%clk 00:15:34]} {[%emt 00:05:50]} 44. Rd6 {[%clk
00:09:11]} {[%emt 00:08:24]} Re5 {[%clk 00:05:35]} {[%emt 00:10:30]} 45. Kf4
{[%clk 00:09:22]} {[%emt 00:00:19]} Rh5 {[%clk 00:05:32]} {[%emt 00:00:33]} 46.
Kg4 {[%clk 00:07:06]} {[%emt 00:02:46]} Re5 {[%clk 00:00:52]} {[%emt 00:05:11]}
47. b4 {[%clk 00:04:27]} {[%emt 00:03:09]} Kf8 {[%clk 00:00:33]} {[%emt
00:00:48]} 48. Bxh7 {[%clk 00:03:14]} {[%emt 00:01:43]} Re3 {[%clk 00:00:43]}
{[%emt 00:00:20]} 49. Rxd5 {[%clk 00:03:12]} {[%emt 00:00:32]} Rxc3 {[%clk
00:01:12]} {[%emt 00:00:01]} 50. Rd4 {[%clk 00:02:59]} {[%emt 00:00:43]} Rc7
{[%clk 00:00:50]} {[%emt 00:00:52]} 51. Bf5 {[%clk 00:02:53]} {[%emt 00:00:35]}
Kg7 {[%clk 00:00:33]} {[%emt 00:00:48]} 52. Kg5 {[%clk 00:02:45]} {[%emt
00:00:38]} Rc6 {[%clk 00:00:33]} {[%emt 00:00:30]} 53. Rd8 {[%clk 00:01:21]}
{[%emt 00:01:54]} Bf7 {[%clk 00:00:36]} {[%emt 00:00:27]} 54. h5 {[%clk
00:01:20]} {[%emt 00:00:31]} b6 {[%clk 00:00:42]} {[%emt 00:00:24]} 55. b5
{[%clk 00:01:16]} {[%emt 00:00:34]} 1-0

[Event "NK 2022"]
[Site "Groningen, Netherlands"]
[Date "2022.12.21"]
[Round "1.4"]
[White "Ernst, Sipke"]
[Black "Van Foreest, Lucas"]
[Result "1/2-1/2"]
[TimeControl "40/90; 30 minutes + increment 30 seconds from start"]
[WhiteTitle "GM"]
[BlackTitle "GM"]
[WhiteFideId "1004689"]
[BlackFideId "1039792"]
[WhiteElo "2512"]
[BlackElo "2577"]

1. Nf3 {[%clk 01:30:55]} {[%emt 00:00:03]} d5 {[%clk 01:30:44]} {[%emt
00:00:17]} 2. g3 {[%clk 01:31:03]} {[%emt 00:00:22]} b6 {[%clk 01:31:02]}
{[%emt 00:00:12]} 3. Bg2 {[%clk 01:31:25]} {[%emt 00:00:08]} Bb7 {[%clk
01:31:24]} {[%emt 00:00:08]} 4. b3 {[%clk 01:30:55]} {[%emt 00:01:01]} e6
{[%clk 01:31:19]} {[%emt 00:00:35]} 5. Bb2 {[%clk 01:31:19]} {[%emt 00:00:06]}
Nf6 {[%clk 01:31:44]} {[%emt 00:00:05]} 6. O-O {[%clk 01:30:56]} {[%emt
00:00:53]} Be7 {[%clk 01:32:10]} {[%emt 00:00:04]} 7. c4 {[%clk 01:31:18]}
{[%emt 00:00:08]} dxc4 {[%clk 01:32:33]} {[%emt 00:00:07]} 8. bxc4 {[%clk
01:31:41]} {[%emt 00:00:06]} O-O {[%clk 01:32:56]} {[%emt 00:00:07]} 9. e3
{[%clk 01:29:15]} {[%emt 00:02:57]} c5 {[%clk 01:32:57]} {[%emt 00:00:29]} 10.
Qe2 {[%clk 01:28:30]} {[%emt 00:01:14]} Ne8 {[%clk 01:27:47]} {[%emt 00:05:41]}
11. Nc3 {[%clk 01:27:04]} {[%emt 00:01:56]} Nd7 {[%clk 01:27:48]} {[%emt
00:00:29]} 12. Rfd1 {[%clk 01:23:48]} {[%emt 00:03:46]} a6 {[%clk 01:22:23]}
{[%emt 00:05:54]} 13. a4 {[%clk 01:19:51]} {[%emt 00:04:27]} Qc7 {[%clk
01:21:25]} {[%emt 00:01:28]} 14. h4 {[%clk 01:17:09]} {[%emt 00:03:13]} Rb8
{[%clk 01:14:47]} {[%emt 00:07:07]} 15. d3 {[%clk 01:11:00]} {[%emt 00:06:39]}
Bf6 {[%clk 01:06:52]} {[%emt 00:08:25]} 16. Rac1 {[%clk 01:06:31]} {[%emt
00:04:59]} Nd6 {[%clk 01:02:09]} {[%emt 00:05:14]} 17. e4 {[%clk 01:00:31]}
{[%emt 00:06:30]} Nc8 {[%clk 00:59:51]} {[%emt 00:02:48]} 18. Nb1 {[%clk
00:49:31]} {[%emt 00:11:31]} Bxb2 {[%clk 00:58:28]} {[%emt 00:01:52]} 19. Qxb2
{[%clk 00:49:56]} {[%emt 00:00:05]} Ne7 {[%clk 00:58:49]} {[%emt 00:00:09]} 20.
Nc3 {[%clk 00:46:36]} {[%emt 00:03:50]} Nc6 {[%clk 00:58:00]} {[%emt 00:01:19]}
21. Ne2 {[%clk 00:44:54]} {[%emt 00:02:12]} Rfd8 {[%clk 00:58:06]} {[%emt
00:00:24]} 22. Ra1 {[%clk 00:34:36]} {[%emt 00:10:49]} Nde5 {[%clk 00:54:51]}
{[%emt 00:03:45]} 23. Nxe5 {[%clk 00:33:52]} {[%emt 00:01:14]} Nxe5 {[%clk
00:54:34]} {[%emt 00:00:46]} 24. a5 {[%clk 00:26:19]} {[%emt 00:08:04]} bxa5
{[%clk 00:53:16]} {[%emt 00:01:48]} 25. Qa3 {[%clk 00:25:04]} {[%emt 00:01:45]}
Qe7 {[%clk 00:52:24]} {[%emt 00:01:21]} 26. d4 {[%clk 00:11:41]} {[%emt
00:13:54]} Nxc4 {[%clk 00:52:44]} {[%emt 00:00:09]} 27. Qc3 {[%clk 00:12:00]}
{[%emt 00:00:11]} Nd6 {[%clk 00:52:52]} {[%emt 00:00:22]} 28. Qxc5 {[%clk
00:11:07]} {[%emt 00:01:24]} Rbc8 {[%clk 00:50:59]} {[%emt 00:02:23]} 29. Qa3
{[%clk 00:10:14]} {[%emt 00:01:22]} Qd7 {[%clk 00:49:17]} {[%emt 00:02:11]} 30.
d5 {[%clk 00:09:04]} {[%emt 00:01:41]} Nc4 {[%clk 00:49:39]} {[%emt 00:00:08]}
31. Qa2 {[%clk 00:08:46]} {[%emt 00:00:48]} exd5 {[%clk 00:45:01]} {[%emt
00:05:08]} 32. exd5 {[%clk 00:09:13]} {[%emt 00:00:04]} a4 {[%clk 00:45:13]}
{[%emt 00:00:18]} 33. Nf4 {[%clk 00:08:08]} {[%emt 00:01:35]} Qe7 {[%clk
00:39:18]} {[%emt 00:06:23]} 34. Re1 {[%clk 00:05:42]} {[%emt 00:02:57]} Qd6
{[%clk 00:33:30]} {[%emt 00:06:18]} 35. Rab1 {[%clk 00:05:00]} {[%emt
00:01:12]} Ba8 {[%clk 00:31:22]} {[%emt 00:02:37]} 36. Bh3 {[%clk 00:05:25]}
{[%emt 00:00:05]} Rc5 {[%clk 00:31:44]} {[%emt 00:00:08]} 37. Qxa4 {[%clk
00:04:45]} {[%emt 00:01:10]} Ne5 {[%clk 00:32:07]} {[%emt 00:00:07]} 38. Bg2
{[%clk 00:03:05]} {[%emt 00:02:10]} Rc4 {[%clk 00:28:52]} {[%emt 00:03:41]} 39.
Qa5 {[%clk 00:01:26]} {[%emt 00:02:14]} Rc5 {[%clk 00:28:57]} {[%emt 00:00:25]}
40. Qa4 {[%clk 00:01:51]} {[%emt 00:00:04]} Rc4 {[%clk 00:29:23]} {[%emt
00:00:04]} 41. Qa5 {[%clk 00:01:18]} {[%emt 00:01:03]} Rc5 {[%clk 00:29:45]}
{[%emt 00:00:08]} 42. Qb6 {[%clk 00:19:54]} {[%emt 00:11:52]} Nc4 {[%clk
00:57:20]} {[%emt 00:02:57]} 43. Qxd6 {[%clk 00:18:03]} {[%emt 00:02:22]} Nxd6
{[%clk 00:57:41]} {[%emt 00:00:09]} 44. Rb6 {[%clk 00:18:30]} {[%emt 00:00:03]}
Kf8 {[%clk 00:53:01]} {[%emt 00:05:08]} 45. Rxa6 {[%clk 00:18:53]} {[%emt
00:00:08]} Bb7 {[%clk 00:53:13]} {[%emt 00:00:19]} 46. Ra7 {[%clk 00:14:44]}
{[%emt 00:04:39]} Rb5 {[%clk 00:53:11]} {[%emt 00:00:32]} 47. Bf1 {[%clk
00:12:50]} {[%emt 00:02:24]} Rb6 {[%clk 00:52:50]} {[%emt 00:00:50]} 48. Raa1
{[%clk 00:13:12]} {[%emt 00:00:08]} g6 {[%clk 00:53:03]} {[%emt 00:00:17]} 49.
Rac1 {[%clk 00:13:03]} {[%emt 00:00:39]} h6 {[%clk 00:52:38]} {[%emt 00:00:55]}
50. Bg2 {[%clk 00:12:42]} {[%emt 00:00:51]} Ne8 {[%clk 00:51:31]} {[%emt
00:01:37]} 51. Rb1 {[%clk 00:12:26]} {[%emt 00:00:46]} Rxb1 {[%clk 00:51:46]}
{[%emt 00:00:16]} 52. Rxb1 {[%clk 00:12:53]} {[%emt 00:00:02]} Ba8 {[%clk
00:49:40]} {[%emt 00:02:36]} 53. Rd1 {[%clk 00:10:07]} {[%emt 00:03:16]} Nf6
{[%clk 00:49:32]} {[%emt 00:00:38]} 54. Rd4 {[%clk 00:10:02]} {[%emt 00:00:35]}
Rd7 {[%clk 00:49:13]} {[%emt 00:00:49]} 55. Ra4 {[%clk 00:08:08]} {[%emt
00:02:25]} 1/2-1/2